[Event "Saint Louis Masters"]
[Date "2024.12.04"]
[White "Theodorou, Nikolas"]
[Black "Mikaelyan, Arman"]
[WhiteElo "2600"]
[BlackElo "2507"]
[Round "3.6"]
[Result "1-0"]
[TimeControl "5400+30"]

1. Nf3 {[%clk 01:30:57] [%emt 00:00:02]} Nf6 {[%clk 01:24:20] [%emt 00:06:30]}
2. c4 {[%clk 01:31:23] [%emt 00:00:13]} g6 {[%clk 01:22:27] [%emt 00:02:24]} 3.
Nc3 {[%clk 01:31:33] [%emt 00:00:20]} Bg7 {[%clk 01:22:49] [%emt 00:00:08]} 4.
d4 {[%clk 01:31:49] [%emt 00:00:15]} O-O {[%clk 01:22:50] [%emt 00:00:28]} 5. e4
{[%clk 01:32:13] [%emt 00:00:06]} d6 {[%clk 01:23:12] [%emt 00:00:09]} 6. Be2
{[%clk 01:32:38] [%emt 00:00:05]} e5 {[%clk 01:22:55] [%emt 00:00:45]} 7. O-O
{[%clk 01:32:57] [%emt 00:00:12]} h6 {[%clk 01:19:51] [%emt 00:03:35]} 8. dxe5
{[%clk 01:27:45] [%emt 00:05:42]} dxe5 {[%clk 01:18:41] [%emt 00:01:40]} 9. Be3
{[%clk 01:28:07] [%emt 00:00:08]} Qxd1 {[%clk 01:03:13] [%emt 00:15:58]} 10.
Rfxd1 {[%clk 01:25:53] [%emt 00:02:44]} Re8 {[%clk 01:01:23] [%emt 00:02:21]}
11. Nd5 {[%clk 01:16:41] [%emt 00:09:41]} Nxd5 {[%clk 01:00:24] [%emt 00:01:29]}
12. cxd5 {[%clk 01:16:59] [%emt 00:00:11]} c6 {[%clk 01:00:15] [%emt 00:00:39]}
13. Rac1 {[%clk 01:12:36] [%emt 00:04:54]} Bd7 {[%clk 00:50:17] [%emt 00:10:28]}
14. Nd2 {[%clk 01:09:04] [%emt 00:04:02]} Rd8 {[%clk 00:35:48] [%emt 00:15:00]}
15. Bc5 {[%clk 00:39:20] [%emt 00:30:14]} Na6 {[%clk 00:28:44] [%emt 00:07:33]}
16. Be7 {[%clk 00:36:37] [%emt 00:03:13]} Rdc8 {[%clk 00:27:20] [%emt 00:01:54]}
17. Nc4 {[%clk 00:26:04] [%emt 00:11:04]} cxd5 {[%clk 00:26:29] [%emt 00:01:21]}
18. exd5 {[%clk 00:26:31] [%emt 00:00:02]} e4 {[%clk 00:19:49] [%emt 00:07:11]}
19. b3 {[%clk 00:24:32] [%emt 00:02:29]} f5 {[%clk 00:17:48] [%emt 00:02:30]}
20. Nd6 {[%clk 00:23:37] [%emt 00:01:25]} Rxc1 {[%clk 00:16:02] [%emt 00:02:17]}
21. Rxc1 {[%clk 00:24:04] [%emt 00:00:02]} Bb2 {[%clk 00:10:51] [%emt 00:05:41]}
22. Rc2 {[%clk 00:23:27] [%emt 00:01:07]} Bd4 {[%clk 00:09:48] [%emt 00:01:34]}
23. Nxb7 {[%clk 00:16:59] [%emt 00:06:57]} Re8 {[%clk 00:10:13] [%emt 00:00:05]}
24. Bd6 {[%clk 00:15:01] [%emt 00:02:28]} Nb8 {[%clk 00:10:14] [%emt 00:00:29]}
25. Nc5 {[%clk 00:12:11] [%emt 00:03:20]} Rc8 {[%clk 00:09:20] [%emt 00:01:24]}
26. Kf1 {[%clk 00:12:01] [%emt 00:00:40]} Be8 {[%clk 00:07:24] [%emt 00:02:26]}
27. Rc4 {[%clk 00:10:28] [%emt 00:02:03]} Ba1 {[%clk 00:06:12] [%emt 00:01:42]}
28. Nxe4 {[%clk 00:08:26] [%emt 00:02:33]} Rd8 {[%clk 00:06:36] [%emt 00:00:05]}
29. Be7 {[%clk 00:05:17] [%emt 00:03:39]} Rxd5 {[%clk 00:06:42] [%emt 00:00:23]}
30. Rc8 {[%clk 00:04:34] [%emt 00:01:14]} Kf7 {[%clk 00:06:38] [%emt 00:00:34]}
31. Bc4 {[%clk 00:04:18] [%emt 00:00:46]} Bb5 {[%clk 00:06:51] [%emt 00:00:18]}
32. Nd6+ {[%clk 00:03:53] [%emt 00:00:55]} Kxe7 {[%clk 00:07:07] [%emt
00:00:13]} 33. Nxb5 {[%clk 00:04:21] [%emt 00:00:03]} Rd8 {[%clk 00:07:07] [%emt
00:00:28]} 34. Nxa7 {[%clk 00:04:17] [%emt 00:00:35]} Rxc8 {[%clk 00:07:18]
[%emt 00:00:20]} 35. Nxc8+ {[%clk 00:04:44] [%emt 00:00:02]} Kd7 {[%clk
00:07:40] [%emt 00:00:08]} 36. Nb6+ {[%clk 00:05:11] [%emt 00:00:04]} Kd6 {[%clk
00:08:06] [%emt 00:00:03]} 37. Bf7 {[%clk 00:03:44] [%emt 00:01:57]} g5 {[%clk
00:08:30] [%emt 00:00:07]} 38. Nc4+ {[%clk 00:04:09] [%emt 00:00:05]} Ke7 {[%clk
00:08:33] [%emt 00:00:26]} 39. Bd5 {[%clk 00:04:33] [%emt 00:00:06]} Nd7 {[%clk
00:08:57] [%emt 00:00:05]} 40. Ke2 {[%clk 00:04:52] [%emt 00:00:12]} Ne5 {[%clk
00:08:40] [%emt 00:00:48]} 41. Ne3 {[%clk 00:04:37] [%emt 00:00:45]} Kf6 {[%clk
00:07:36] [%emt 00:01:33]} 42. Nc2 {[%clk 00:05:05] [%emt 00:00:03]} Bc3 {[%clk
00:07:59] [%emt 00:00:06]} 43. Bb7 {[%clk 00:04:44] [%emt 00:00:52]} Nd7 {[%clk
00:07:49] [%emt 00:00:39]} 44. Ne3 {[%clk 00:04:08] [%emt 00:01:06]} Nb6 {[%clk
00:07:50] [%emt 00:00:30]} 45. Kd3 {[%clk 00:04:16] [%emt 00:00:21]} Be1 {[%clk
00:08:14] [%emt 00:00:06]} 46. f3 {[%clk 00:04:27] [%emt 00:00:19]} Ke5 {[%clk
00:08:35] [%emt 00:00:08]} 47. Nc4+ {[%clk 00:04:04] [%emt 00:00:54]} Nxc4
{[%clk 00:08:59] [%emt 00:00:07]} 48. Kxc4 {[%clk 00:04:32] [%emt 00:00:02]} Kd6
{[%clk 00:09:08] [%emt 00:00:20]} 49. Bc8 {[%clk 00:04:21] [%emt 00:00:41]} f4
{[%clk 00:09:30] [%emt 00:00:08]} 50. b4 {[%clk 00:04:33] [%emt 00:00:18]} Kc7
{[%clk 00:09:26] [%emt 00:00:34]} 51. Bf5 {[%clk 00:04:58] [%emt 00:00:05]} Kc6
{[%clk 00:09:00] [%emt 00:00:57]} 52. Bg6 {[%clk 00:05:05] [%emt 00:00:22]} Bd2
{[%clk 00:09:03] [%emt 00:00:27]} 53. a4 {[%clk 00:05:23] [%emt 00:00:12]} Be1
{[%clk 00:09:16] [%emt 00:00:17]} 54. Be4+ {[%clk 00:04:14] [%emt 00:01:39]} Kd6
{[%clk 00:09:20] [%emt 00:00:26]} 55. Kb5 {[%clk 00:04:25] [%emt 00:00:19]} Kc7
{[%clk 00:08:11] [%emt 00:01:38]} 56. a5 {[%clk 00:04:25] [%emt 00:00:30]} Bd2
{[%clk 00:07:18] [%emt 00:01:23]} 57. Bg6 {[%clk 00:04:25] [%emt 00:00:30]} Be1
{[%clk 00:07:25] [%emt 00:00:23]} 58. Be8 {[%clk 00:04:26] [%emt 00:00:29]} Bd2
{[%clk 00:07:26] [%emt 00:00:30]} 59. Ka4 {[%clk 00:04:14] [%emt 00:00:41]} Kd6
{[%clk 00:07:21] [%emt 00:00:35]} 60. Bg6 {[%clk 00:04:14] [%emt 00:00:30]} Be1
{[%clk 00:07:23] [%emt 00:00:29]} 61. Be4 {[%clk 00:04:05] [%emt 00:00:39]} Bd2
{[%clk 00:07:34] [%emt 00:00:19]} 62. Bh7 {[%clk 00:03:04] [%emt 00:01:31]} Be1
{[%clk 00:07:52] [%emt 00:00:12]} 63. Kb3 {[%clk 00:03:28] [%emt 00:00:06]} Bd2
{[%clk 00:07:57] [%emt 00:00:25]} 64. Bg8 {[%clk 00:03:46] [%emt 00:00:12]} Be1
{[%clk 00:08:05] [%emt 00:00:22]} 65. Kc4 {[%clk 00:04:03] [%emt 00:00:12]} Bd2
{[%clk 00:08:14] [%emt 00:00:21]} 66. Kb5 {[%clk 00:04:06] [%emt 00:00:27]} Kc7
{[%clk 00:07:53] [%emt 00:00:51]} 67. Ba2 {[%clk 00:03:12] [%emt 00:01:24]} Be1
{[%clk 00:08:15] [%emt 00:00:09]} 68. Bb1 {[%clk 00:03:34] [%emt 00:00:08]} Bd2
{[%clk 00:08:32] [%emt 00:00:12]} 69. Ka4 {[%clk 00:01:18] [%emt 00:02:46]} Kd6
{[%clk 00:08:49] [%emt 00:00:13]} 70. Bd3 {[%clk 00:00:41] [%emt 00:01:07]} Be1
{[%clk 00:09:10] [%emt 00:00:09]} 71. Bf1 {[%clk 00:00:58] [%emt 00:00:13]} Bd2
{[%clk 00:09:28] [%emt 00:00:12]} 72. Kb5 {[%clk 00:01:27] [%emt 00:00:01]} Kc7
{[%clk 00:09:34] [%emt 00:00:24]} 73. g4 {[%clk 00:01:53] [%emt 00:00:04]} fxg3
{[%clk 00:01:12] [%emt 00:08:53]} 74. hxg3 {[%clk 00:02:21] [%emt 00:00:01]} h5
{[%clk 00:00:48] [%emt 00:00:54]} 75. Ka4 {[%clk 00:02:50] [%emt 00:00:02]} g4
{[%clk 00:00:33] [%emt 00:00:44]} 76. f4 {[%clk 00:03:15] [%emt 00:00:05]} h4
{[%clk 00:00:36] [%emt 00:00:27]} 77. gxh4 {[%clk 00:02:41] [%emt 00:01:05]}
Bxf4 {[%clk 00:01:03] [%emt 00:00:03]} 78. h5 {[%clk 00:03:04] [%emt 00:00:07]}
g3 {[%clk 00:01:16] [%emt 00:00:17]} 79. Bg2 {[%clk 00:03:21] [%emt 00:00:12]}
Bd2 {[%clk 00:01:21] [%emt 00:00:25]} 80. b5 {[%clk 00:03:32] [%emt 00:00:20]}
Kd6 {[%clk 00:01:37] [%emt 00:00:14]} 81. a6 {[%clk 00:03:02] [%emt 00:01:00]}
Be3 {[%clk 00:01:50] [%emt 00:00:17]} 82. h6 {[%clk 00:03:27] [%emt 00:00:05]}
1-0

[Site "Europe Echecs"]

[Event "Saint Louis Masters"]
[Date "2024.12.04"]
[White "Can, Isik"]
[Black "Vazquez, Guillermo"]
[WhiteElo "2499"]
[BlackElo "2569"]
[Round "3.7"]
[Result "1/2-1/2"]
[TimeControl "5400+30"]

1. e4 {[%clk 01:25:42] [%emt 00:05:17]} c6 {[%clk 01:30:18] [%emt 00:00:42]} 2.
d4 {[%clk 01:25:50] [%emt 00:00:22]} d5 {[%clk 01:30:45] [%emt 00:00:03]} 3. e5
{[%clk 01:26:16] [%emt 00:00:04]} Bf5 {[%clk 01:29:41] [%emt 00:01:34]} 4. h4
{[%clk 01:26:37] [%emt 00:00:10]} h5 {[%clk 01:28:39] [%emt 00:01:31]} 5. Bd3
{[%clk 01:25:47] [%emt 00:01:19]} Bxd3 {[%clk 01:28:37] [%emt 00:00:33]} 6. Qxd3
{[%clk 01:26:08] [%emt 00:00:08]} Qa5+ {[%clk 01:28:04] [%emt 00:01:04]} 7. Nd2
{[%clk 01:25:20] [%emt 00:01:18]} e6 {[%clk 01:28:26] [%emt 00:00:08]} 8. Ngf3
{[%clk 01:22:30] [%emt 00:03:20]} Nh6 {[%clk 01:27:39] [%emt 00:01:17]} 9. O-O
{[%clk 01:22:28] [%emt 00:00:32]} Nf5 {[%clk 01:27:55] [%emt 00:00:14]} 10. Nb3
{[%clk 01:22:53] [%emt 00:00:06]} Qb5 {[%clk 01:25:40] [%emt 00:02:45]} 11. Qd1
{[%clk 01:09:23] [%emt 00:13:59]} c5 {[%clk 01:24:36] [%emt 00:01:33]} 12. a4
{[%clk 01:04:45] [%emt 00:05:09]} Qb6 {[%clk 01:23:09] [%emt 00:01:56]} 13. a5
{[%clk 01:04:23] [%emt 00:00:53]} Qb5 {[%clk 01:23:20] [%emt 00:00:18]} 14. dxc5
{[%clk 01:04:25] [%emt 00:00:29]} Bxc5 {[%clk 01:22:23] [%emt 00:01:26]} 15.
Nxc5 {[%clk 01:00:58] [%emt 00:03:58]} Qxc5 {[%clk 01:22:38] [%emt 00:00:14]}
16. c3 {[%clk 00:57:35] [%emt 00:03:54]} Nc6 {[%clk 01:21:44] [%emt 00:01:24]}
17. Re1 {[%clk 00:52:02] [%emt 00:06:04]} Rd8 {[%clk 01:12:54] [%emt 00:09:19]}
18. a6 {[%clk 00:42:55] [%emt 00:09:38]} b5 {[%clk 01:01:13] [%emt 00:12:11]}
19. Be3 {[%clk 00:40:17] [%emt 00:03:08]} Nxe3 {[%clk 00:41:20] [%emt 00:20:22]}
20. Rxe3 {[%clk 00:40:41] [%emt 00:00:06]} g6 {[%clk 00:41:43] [%emt 00:00:07]}
21. b4 {[%clk 00:35:12] [%emt 00:05:59]} Qb6 {[%clk 00:32:42] [%emt 00:09:31]}
22. Nd4 {[%clk 00:34:47] [%emt 00:00:56]} Rc8 {[%clk 00:30:16] [%emt 00:02:56]}
23. Nb3 {[%clk 00:27:55] [%emt 00:07:22]} 1/2-1/2

[Site "Europe Echecs"]

[Event "Saint Louis Masters"]
[Date "2024.12.04"]
[White "Khanin, Semen"]
[Black "Nyzhnyk, Illya"]
[WhiteElo "2568"]
[BlackElo "2564"]
[Round "3.8"]
[Result "1/2-1/2"]
[TimeControl "5400+30"]

1. d4 {[%clk 01:25:32] [%emt 00:05:27]} d5 {[%clk 01:30:47] [%emt 00:00:13]} 2.
c4 {[%clk 01:25:58] [%emt 00:00:05]} c6 {[%clk 01:31:13] [%emt 00:00:04]} 3. Nf3
{[%clk 01:26:10] [%emt 00:00:18]} Nf6 {[%clk 01:31:36] [%emt 00:00:06]} 4. Nc3
{[%clk 01:26:32] [%emt 00:00:08]} e6 {[%clk 01:31:42] [%emt 00:00:24]} 5. Bg5
{[%clk 01:26:56] [%emt 00:00:07]} h6 {[%clk 01:31:32] [%emt 00:00:39]} 6. Bxf6
{[%clk 01:27:21] [%emt 00:00:06]} Qxf6 {[%clk 01:31:58] [%emt 00:00:04]} 7. a3
{[%clk 01:27:45] [%emt 00:00:06]} dxc4 {[%clk 01:29:06] [%emt 00:03:21]} 8. e3
{[%clk 01:28:07] [%emt 00:00:09]} b5 {[%clk 01:27:12] [%emt 00:02:24]} 9. Ne5
{[%clk 01:28:30] [%emt 00:00:07]} Bb7 {[%clk 01:23:05] [%emt 00:04:36]} 10. b3
{[%clk 01:28:46] [%emt 00:00:15]} cxb3 {[%clk 01:19:46] [%emt 00:03:49]} 11.
Nxb5 {[%clk 01:27:54] [%emt 00:01:22]} b2 {[%clk 01:02:21] [%emt 00:17:55]} 12.
Rb1 {[%clk 01:27:28] [%emt 00:00:56]} cxb5 {[%clk 01:02:47] [%emt 00:00:04]} 13.
Bxb5+ {[%clk 01:27:49] [%emt 00:00:09]} Kd8 {[%clk 01:03:01] [%emt 00:00:14]}
14. O-O {[%clk 01:27:27] [%emt 00:00:52]} Bd6 {[%clk 00:59:12] [%emt 00:04:20]}
15. Rxb2 {[%clk 01:26:39] [%emt 00:01:18]} Bd5 {[%clk 00:55:28] [%emt 00:04:14]}
16. f4 {[%clk 01:17:50] [%emt 00:09:19]} Qe7 {[%clk 00:54:49] [%emt 00:01:09]}
17. Bc4 {[%clk 01:14:14] [%emt 00:04:06]} Bxe5 {[%clk 00:43:43] [%emt 00:11:36]}
18. dxe5 {[%clk 01:11:09] [%emt 00:03:35]} Qc5 {[%clk 00:41:09] [%emt 00:03:04]}
19. Bxd5 {[%clk 01:11:16] [%emt 00:00:23]} exd5 {[%clk 00:41:37] [%emt
00:00:02]} 20. Qd2 {[%clk 00:50:28] [%emt 00:21:17]} Nd7 {[%clk 00:41:43] [%emt
00:00:25]} 21. Rc1 {[%clk 00:34:50] [%emt 00:16:09]} Qxa3 {[%clk 00:42:08] [%emt
00:00:05]} 22. Ra2 {[%clk 00:33:42] [%emt 00:01:38]} Qb3 {[%clk 00:42:33] [%emt
00:00:04]} 23. Rb2 {[%clk 00:33:18] [%emt 00:00:54]} Qa3 {[%clk 00:42:58] [%emt
00:00:04]} 24. Ra2 {[%clk 00:25:26] [%emt 00:08:22]} 1/2-1/2

[Site "Europe Echecs"]

[Event "Saint Louis Masters"]
[Date "2024.12.04"]
[White "Heimann, Mark"]
[Black "Mishra, Abhimanyu"]
[WhiteElo "2459"]
[BlackElo "2616"]
[Round "3.9"]
[Result "1/2-1/2"]
[TimeControl "5400+30"]

1. d4 {[%clk 01:31:00]} Nf6 {[%clk 01:29:31] [%emt 00:01:29]} 2. c4 {[%clk
01:30:38] [%emt 00:00:51]} e6 {[%clk 01:29:30] [%emt 00:00:26]} 3. Nf3 {[%clk
01:30:47] [%emt 00:00:27]} d5 {[%clk 01:29:33] [%emt 00:00:27]} 4. Nc3 {[%clk
01:31:10] [%emt 00:00:07]} c6 {[%clk 01:29:42] [%emt 00:00:21]} 5. e3 {[%clk
01:31:34] [%emt 00:00:06]} Nbd7 {[%clk 01:29:45] [%emt 00:00:28]} 6. Be2 {[%clk
01:31:56] [%emt 00:00:07]} Bd6 {[%clk 01:29:31] [%emt 00:00:44]} 7. O-O {[%clk
01:32:18] [%emt 00:00:08]} O-O {[%clk 01:29:39] [%emt 00:00:22]} 8. b3 {[%clk
01:32:04] [%emt 00:00:44]} b6 {[%clk 01:29:46] [%emt 00:00:23]} 9. Bb2 {[%clk
01:32:29] [%emt 00:00:05]} Bb7 {[%clk 01:30:07] [%emt 00:00:09]} 10. Bd3 {[%clk
01:32:53] [%emt 00:00:05]} Rc8 {[%clk 01:23:31] [%emt 00:07:06]} 11. Rc1 {[%clk
01:33:02] [%emt 00:00:22]} Qe7 {[%clk 01:21:21] [%emt 00:02:40]} 12. Re1 {[%clk
01:31:43] [%emt 00:01:49]} c5 {[%clk 01:17:40] [%emt 00:04:11]} 13. cxd5 {[%clk
01:29:11] [%emt 00:03:02]} cxd4 {[%clk 01:15:20] [%emt 00:02:50]} 14. Nxd4
{[%clk 01:25:29] [%emt 00:04:12]} Nxd5 {[%clk 01:15:08] [%emt 00:00:42]} 15.
Nxd5 {[%clk 01:21:53] [%emt 00:04:06]} Bxd5 {[%clk 01:14:57] [%emt 00:00:41]}
16. Qh5 {[%clk 01:15:51] [%emt 00:06:31]} Nf6 {[%clk 01:03:47] [%emt 00:11:41]}
17. Qh4 {[%clk 01:10:38] [%emt 00:05:42]} Ne4 {[%clk 00:56:45] [%emt 00:07:33]}
18. Qxe7 {[%clk 01:10:38] [%emt 00:00:30]} Bxe7 {[%clk 00:57:12] [%emt
00:00:03]} 19. Ba6 {[%clk 01:10:55] [%emt 00:00:13]} Rxc1 {[%clk 00:49:45] [%emt
00:07:56]} 20. Rxc1 {[%clk 01:11:19] [%emt 00:00:06]} Nc5 {[%clk 00:50:09] [%emt
00:00:06]} 21. Be2 {[%clk 01:08:25] [%emt 00:03:25]} a5 {[%clk 00:43:25] [%emt
00:07:15]} 1/2-1/2

[Site "Europe Echecs"]

[Event "Saint Louis Masters"]
[Date "2024.12.04"]
[White "Oparin, Grigoriy"]
[Black "Hardaway, Brewington"]
[WhiteElo "2653"]
[BlackElo "2499"]
[Round "3.10"]
[Result "1-0"]
[TimeControl "5400+30"]

1. Nf3 {[%clk 01:30:57] [%emt 00:00:02]} d5 {[%clk 01:30:44] [%emt 00:00:15]} 2.
g3 {[%clk 01:31:23] [%emt 00:00:05]} c5 {[%clk 01:30:47] [%emt 00:00:27]} 3. Bg2
{[%clk 01:31:48] [%emt 00:00:05]} g6 {[%clk 01:31:11] [%emt 00:00:06]} 4. c4
{[%clk 01:31:59] [%emt 00:00:20]} d4 {[%clk 01:31:33] [%emt 00:00:07]} 5. b4
{[%clk 01:32:11] [%emt 00:00:18]} cxb4 {[%clk 01:31:54] [%emt 00:00:08]} 6. a3
{[%clk 01:32:29] [%emt 00:00:13]} bxa3 {[%clk 01:31:54] [%emt 00:00:30]} 7. Nxa3
{[%clk 01:32:49] [%emt 00:00:10]} Nc6 {[%clk 01:23:16] [%emt 00:09:07]} 8. Qa4
{[%clk 01:32:47] [%emt 00:00:33]} Bd7 {[%clk 01:18:12] [%emt 00:05:34]} 9. Qb3
{[%clk 01:32:52] [%emt 00:00:25]} e5 {[%clk 00:59:07] [%emt 00:19:35]} 10. O-O
{[%clk 01:28:37] [%emt 00:04:44]} Nf6 {[%clk 00:53:35] [%emt 00:06:02]} 11. d3
{[%clk 01:26:38] [%emt 00:02:30]} Bc5 {[%clk 00:48:00] [%emt 00:06:05]} 12. Bh6
{[%clk 01:21:19] [%emt 00:05:48]} Ng4 {[%clk 00:38:08] [%emt 00:10:23]} 13. Bg5
{[%clk 01:21:28] [%emt 00:00:21]} f6 {[%clk 00:38:15] [%emt 00:00:23]} 14. Bd2
{[%clk 01:21:46] [%emt 00:00:12]} f5 {[%clk 00:35:45] [%emt 00:03:00]} 15. h3
{[%clk 01:01:02] [%emt 00:21:14]} Nf6 {[%clk 00:36:10] [%emt 00:00:05]} 16. Bh6
{[%clk 01:01:23] [%emt 00:00:10]} Qe7 {[%clk 00:32:36] [%emt 00:04:03]} 17. Nc2
{[%clk 00:40:04] [%emt 00:21:49]} Rb8 {[%clk 00:19:43] [%emt 00:13:24]} 18. e3
{[%clk 00:35:54] [%emt 00:04:39]} dxe3 {[%clk 00:18:17] [%emt 00:01:56]} 19.
Nxe3 {[%clk 00:36:07] [%emt 00:00:17]} Bxe3 {[%clk 00:03:18] [%emt 00:15:29]}
20. fxe3 {[%clk 00:35:36] [%emt 00:01:01]} Ng8 {[%clk 00:03:03] [%emt 00:00:44]}
21. Bg5 {[%clk 00:35:53] [%emt 00:00:13]} Qg7 {[%clk 00:03:28] [%emt 00:00:05]}
22. e4 {[%clk 00:34:18] [%emt 00:02:05]} Nf6 {[%clk 00:01:48] [%emt 00:02:10]}
23. exf5 {[%clk 00:30:35] [%emt 00:04:14]} gxf5 {[%clk 00:01:58] [%emt
00:00:20]} 24. c5 {[%clk 00:29:33] [%emt 00:01:31]} Nh5 {[%clk 00:00:38] [%emt
00:01:50]} 25. Rae1 {[%clk 00:25:49] [%emt 00:04:14]} Nxg3 {[%clk 00:00:32]
[%emt 00:00:36]} 26. Nxe5 {[%clk 00:26:04] [%emt 00:00:15]} Nxe5 {[%clk
00:00:41] [%emt 00:00:22]} 27. Bf4 {[%clk 00:26:26] [%emt 00:00:07]} Ne4 {[%clk
00:00:31] [%emt 00:00:40]} 28. dxe4 {[%clk 00:26:21] [%emt 00:00:35]} Rg8 {[%clk
00:00:34] [%emt 00:00:28]} 29. Re2 {[%clk 00:23:18] [%emt 00:03:32]} 1-0

[Site "Europe Echecs"]

[Event "Saint Louis Masters"]
[Date "2024.12.04"]
[White "Cordova, Emilio"]
[Black "Hakobyan, Aram"]
[WhiteElo "2531"]
[BlackElo "2625"]
[Round "4.2"]
[Result "1/2-1/2"]
[TimeControl "5400+30"]

1. Nf3 {[%clk 01:26:44] [%emt 00:04:14]} Nf6 {[%clk 01:29:33] [%emt 00:01:28]}
2. c4 {[%clk 01:25:17] [%emt 00:01:57]} e6 {[%clk 01:29:20] [%emt 00:00:44]} 3.
e3 {[%clk 01:21:28] [%emt 00:04:19]} d5 {[%clk 01:29:05] [%emt 00:00:45]} 4. Nc3
{[%clk 01:21:40] [%emt 00:00:17]} Bd6 {[%clk 01:29:02] [%emt 00:00:34]} 5. b3
{[%clk 01:21:46] [%emt 00:00:24]} O-O {[%clk 01:29:11] [%emt 00:00:21]} 6. Bb2
{[%clk 01:22:07] [%emt 00:00:09]} c5 {[%clk 01:29:21] [%emt 00:00:20]} 7. Be2
{[%clk 01:18:07] [%emt 00:04:29]} Nc6 {[%clk 01:29:24] [%emt 00:00:27]} 8. cxd5
{[%clk 01:18:16] [%emt 00:00:21]} exd5 {[%clk 01:29:42] [%emt 00:00:13]} 9. d4
{[%clk 01:17:59] [%emt 00:00:46]} cxd4 {[%clk 01:29:05] [%emt 00:01:08]} 10.
Nxd4 {[%clk 01:18:20] [%emt 00:00:10]} Nxd4 {[%clk 01:29:19] [%emt 00:00:15]}
11. Qxd4 {[%clk 01:18:40] [%emt 00:00:09]} Re8 {[%clk 01:29:40] [%emt 00:00:11]}
12. O-O {[%clk 01:05:51] [%emt 00:13:17]} Be5 {[%clk 01:29:57] [%emt 00:00:14]}
13. Qd2 {[%clk 01:02:40] [%emt 00:03:41]} Bf5 {[%clk 01:18:56] [%emt 00:11:30]}
14. Rfd1 {[%clk 00:37:57] [%emt 00:25:14]} a6 {[%clk 00:55:52] [%emt 00:23:34]}
15. Bf3 {[%clk 00:33:15] [%emt 00:05:12]} Bg4 {[%clk 00:42:35] [%emt 00:13:48]}
16. Ne2 {[%clk 00:14:31] [%emt 00:19:13]} Bxf3 {[%clk 00:42:22] [%emt 00:00:43]}
17. gxf3 {[%clk 00:14:56] [%emt 00:00:05]} Qd7 {[%clk 00:40:01] [%emt 00:02:51]}
18. Kg2 {[%clk 00:13:26] [%emt 00:02:00]} h5 {[%clk 00:37:51] [%emt 00:02:41]}
19. Rg1 {[%clk 00:12:35] [%emt 00:01:19]} Rac8 {[%clk 00:33:16] [%emt 00:05:06]}
20. Bxe5 {[%clk 00:12:33] [%emt 00:00:32]} Rxe5 {[%clk 00:33:43] [%emt
00:00:03]} 21. Nd4 {[%clk 00:12:48] [%emt 00:00:15]} Rg5+ {[%clk 00:31:41] [%emt
00:02:30]} 1/2-1/2

[Site "Europe Echecs"]